fUST/lending_fUST_20250827
["ID","MTS","AMOUNT","RATE_DAILY","PERIOD"]
[381567701,1756285855509,-600.0,0.00023626,20]
[381567702,1756285855519,-150.0,0.00023629,2]
[381567703,1756285855528,-500.0,0.00023632,2]
[381567704,1756285855537,-509.96383387,0.00023632,2]
[381567705,1756285855546,-480.0,0.00023668,2]
[381567706,1756285855555,-480.0,0.00023668,2]
[381567707,1756285855565,-480.0,0.00023668,2]
[381567708,1756285855574,-480.0,0.00023668,2]
[381567709,1756285855583,-480.0,0.00023668,2]
[381567710,1756285855592,-1304.71,0.00023668,2]
[381567711,1756285855601,-500.0,0.00023668,2]
[381567712,1756285855610,-151.0,0.000237,7]
[381567713,1756285855619,-151.0,0.000237,10]
[381567714,1756285855628,-151.0,0.000237,7]
[381567715,1756285855638,-480.0,0.00023701,2]
[381567716,1756285855647,-480.0,0.00023701,2]
[381567717,1756285855657,-480.0,0.00023701,2]
[381567718,1756285855666,-541.47,0.00023701,2]
[381567719,1756285855675,-498.9,0.00023701,2]
[381567720,1756285855684,-563.3,0.00023701,2]
[381567721,1756285855694,-480.0,0.00023701,2]
[381567722,1756285855703,-480.0,0.00023701,2]
[381567723,1756285855712,-361.09662159,0.00023701,2]
[381567724,1756285855721,-480.0,0.00023701,2]
[381567725,1756285855730,-480.0,0.00023701,2]
[381567726,1756285855739,-720.79,0.00023701,2]
[381567727,1756285855748,-480.0,0.00023701,2]
[381567728,1756285855757,-480.0,0.00023701,2]
[381567729,1756285855767,-480.0,0.00023701,2]
[381567730,1756285855776,-480.0,0.00023701,2]
[381567731,1756285855785,-501.91,0.00023701,2]
[381567732,1756285855794,-480.0,0.00023701,2]
[381567733,1756285855803,-730.1,0.00023701,2]
[381567734,1756285855812,-702.89,0.00023701,2]
[381567735,1756285855821,-480.0,0.00023701,2]
[381567736,1756285855830,-565.76,0.00023701,2]
[381567737,1756285855840,-674.26,0.00023701,2]
[381567738,1756285855849,-480.0,0.00023701,2]
[381567739,1756285855859,-151.826704,0.00023701,7]
[381567740,1756285855869,-679.8,0.00023701,2]
[381567741,1756285855879,-151.0,0.00023701,7]
[381567742,1756285855888,-480.0,0.00023701,2]
[381567743,1756285855898,-480.0,0.00023701,2]
[381567744,1756285855907,-206.125945,0.00023701,7]
[381567745,1756285855917,-206.125945,0.00023701,7]
[381567746,1756285855927,-480.0,0.00023701,2]
[381567747,1756285855938,-206.125945,0.00023701,7]
[381567748,1756285855949,-206.125945,0.00023701,7]
[381567749,1756285855959,-480.0,0.00023701,2]
[381567750,1756285855970,-712.05,0.00023701,2]
[381567751,1756285855979,-480.0,0.00023701,2]
[381567752,1756285855988,-480.0,0.00023701,2]
[381567753,1756285855997,-335.17755488,0.00023701,2]
[381567754,1756285856006,-979.4,0.00023701,2]
[381567755,1756285856015,-712.53,0.00023701,2]
[381567756,1756285856024,-1469.65,0.00023701,2]
[381567757,1756285856033,-480.0,0.00023701,2]
[381567758,1756285856043,-639.0,0.00023701,2]
[381567759,1756285856052,-480.0,0.00023701,2]
[381567760,1756285856061,-268.61771577,0.00023701,2]
[381567761,1756285856070,-480.0,0.00023701,2]
[381567762,1756285856079,-817.51,0.00023701,2]
[381567763,1756285856091,-480.0,0.00023701,2]
[381567764,1756285856100,-480.0,0.00023701,2]
[381567765,1756285856109,-672.32,0.00023701,2]
[381567766,1756285856118,-506.58,0.00023701,2]
[381567767,1756285856129,-4677.51,0.00023701,2]
[381567768,1756285856138,-480.0,0.00023701,2]
[381567769,1756285856147,-480.0,0.00023701,2]
[381567770,1756285856157,-2100.06,0.00023701,2]
[381567771,1756285856167,-240.33078166,0.00023701,2]
[381567772,1756285856177,-657.34,0.00023701,2]
[381567773,1756285856186,-185.6824076,0.00023701,2]
[381567774,1756285856195,-1882.32,0.00023701,2]
[381567775,1756285856204,-587.34,0.00023701,2]
[381567776,1756285856213,-2412.59,0.00023701,2]
[381567777,1756285856222,-480.0,0.00023701,2]
[381567778,1756285856231,-480.0,0.00023701,2]
[381567779,1756285856240,-495.16,0.00023701,2]
[381567780,1756285856249,-480.0,0.00023701,2]
[381567781,1756285856259,-480.0,0.00023701,2]
[381567782,1756285856268,-151.0,0.00023701,7]
[381567783,1756285856280,-152.553054,0.00023701,7]
[381567784,1756285856289,-265.914854,0.00023701,7]
[381567785,1756285856298,-265.914854,0.00023701,7]
[381567786,1756285856307,-820.71,0.00023701,2]
[381567787,1756285856316,-265.914854,0.00023701,7]
[381567788,1756285856325,-256.1582459,0.00023701,2]
[381567789,1756285856335,-265.914854,0.00023701,7]
[381567790,1756285856344,-480.0,0.00023701,2]
[381567791,1756285856354,-748.5,0.00023701,2]
[381567792,1756285856363,-480.0,0.00023701,2]
[381567793,1756285856373,-200.04554455,0.00023701,2]
[381567794,1756285856383,-549.5,0.00023701,2]
[381567795,1756285856392,-536.98,0.00023701,2]
[381567796,1756285856401,-251.306346,0.00023701,7]
[381567797,1756285856410,-251.306346,0.00023701,7]
[381567798,1756285856419,-1687.19,0.00023701,2]
[381567799,1756285856429,-251.306346,0.00023701,7]
[381567800,1756285856438,-480.0,0.00023701,2]
[381567801,1756285856447,-251.306346,0.00023701,7]
[381567802,1756285856457,-244.594158,0.00023701,7]
[381567803,1756285856466,-244.594158,0.00023701,7]
[381567804,1756285856475,-1124.67,0.00023701,2]
[381567805,1756285856485,-244.594158,0.00023701,7]
[381567806,1756285856494,-233.1895123,0.00023701,2]
[381567807,1756285856503,-244.594158,0.00023701,7]
[381567808,1756285856513,-939.76,0.00023701,2]
[381567809,1756285856522,-973.37,0.00023709,2]
[381567810,1756285856531,-598.01,0.00023709,2]
[381567811,1756285856540,-480.0,0.00023709,2]
[381567812,1756285856550,-480.0,0.00023709,2]
[381567813,1756285856559,-480.0,0.00023709,2]
[381567814,1756285856568,-480.0,0.00023709,2]
[381567815,1756285856577,-480.0,0.00023709,2]
[381567816,1756285856586,-480.0,0.00023709,2]
[381567817,1756285856595,-480.0,0.00023709,2]
[381567818,1756285856604,-480.0,0.00023709,2]
[381567819,1756285856613,-692.86,0.00023709,2]
[381567820,1756285856623,-480.0,0.00023709,2]
[381567821,1756285856633,-480.0,0.00023709,2]
[381567822,1756285856642,-823.54,0.00023709,2]
[381567823,1756285856652,-480.0,0.00023709,2]
[381567824,1756285856661,-265.48481493,0.00023709,2]
[381567825,1756285856670,-904.0,0.00023709,2]
[381567826,1756285856679,-539.95,0.00023709,2]
[381567827,1756285856689,-543.54,0.00023709,2]
[381567828,1756285856698,-480.0,0.00023709,2]
[381567829,1756285856707,-589.92,0.00023709,2]
[381567830,1756285856716,-480.0,0.00023709,2]
[381567831,1756285856725,-573.33,0.00023709,2]
[381567832,1756285856734,-518.46,0.00023709,2]
[381567833,1756285856743,-1072.36,0.00023709,2]
[381567834,1756285856752,-661.31,0.00023709,2]
[381567835,1756285856761,-480.0,0.00023709,2]
[381567836,1756285856770,-480.0,0.00023709,2]
[381567837,1756285856780,-1579.27,0.00023709,2]
[381567838,1756285856789,-480.0,0.00023709,2]
[381567839,1756285856799,-2289.21,0.00023709,2]
[381567840,1756285856807,-480.0,0.00023709,2]
[381567841,1756285856817,-1276.73,0.00023709,2]
[381567842,1756285856826,-186.17398869,0.00023709,2]
[381567843,1756285856835,-480.0,0.00023709,2]
[381567844,1756285856844,-588.66,0.00023709,2]
[381567845,1756285856853,-229.65911226,0.00023709,2]
[381567846,1756285856863,-480.0,0.00023709,2]
[381567847,1756285856872,-283.11724988,0.00023709,2]
[381567848,1756285856882,-480.0,0.00023709,2]
[381567849,1756285856891,-480.0,0.00023709,2]
[381567850,1756285856901,-638.04,0.00023709,2]
[381567851,1756285856910,-483.41,0.00023709,2]
[381567852,1756285856920,-565.0,0.00023709,2]
[381567853,1756285856928,-480.0,0.00023709,2]
[381567854,1756285856937,-500.0,0.00023709,2]
[381567855,1756285856947,-726.75,0.00023709,2]
[381567856,1756285856956,-737.76,0.00023709,2]
[381567857,1756285857120,-480.0,0.00023709,2]
[381567858,1756285857131,-480.0,0.00023709,2]
[381567859,1756285857140,-755.95,0.00023709,2]
[381567860,1756285857149,-546.92,0.00023709,2]
[381567861,1756285857160,-480.0,0.00023709,2]
[381567862,1756285857170,-480.0,0.00023709,2]
[381567863,1756285857179,-1220.67,0.00023709,2]
[381567864,1756285857188,-480.0,0.00023709,2]
[381567865,1756285857198,-1004.72,0.00023709,2]
[381567866,1756285857207,-480.0,0.00023709,2]
[381567867,1756285857218,-624.24,0.00023709,2]
[381567868,1756285857228,-831.69,0.00023709,2]
[381567869,1756285857237,-151.0,0.00023709,7]
[381567870,1756285857247,-1158.97,0.00023709,2]
[381567871,1756285857256,-484.63857434,0.00023709,2]
[381567872,1756285857266,-229.574816,0.00023709,7]
[381567873,1756285857275,-894.53,0.00023709,2]
[381567874,1756285857285,-578.64,0.00023709,2]
[381567875,1756285857294,-553.43,0.00023709,2]
[381567876,1756285857304,-200.0,0.00023709,7]
[381567877,1756285857313,-200.0,0.00023709,7]
[381567878,1756285857323,-200.0,0.00023709,7]
[381567879,1756285857333,-200.0,0.00023709,7]
[381567880,1756285857343,-480.0,0.00023709,2]
[381567881,1756285857352,-1766.57,0.00023709,2]
[381567882,1756285857362,-518.24,0.00023709,2]
[381567883,1756285857371,-1075.97,0.00023709,2]
[381567884,1756285857381,-480.0,0.00023709,2]
[381567885,1756285857391,-480.0,0.00023709,2]
[381567886,1756285857400,-480.0,0.00023709,2]
[381567887,1756285857409,-480.0,0.00023709,2]
[381567888,1756285857418,-480.0,0.00023709,2]
[381567889,1756285857427,-480.0,0.00023709,2]
[381567890,1756285857437,-580.93,0.00023709,2]
[381567891,1756285857446,-480.0,0.00023709,2]
[381567892,1756285857455,-480.0,0.00023709,2]
[381567893,1756285857464,-604.48,0.00023709,2]
[381567894,1756285857474,-480.0,0.00023709,2]
[381567895,1756285857483,-912.71,0.00023709,2]
[381567896,1756285857493,-712.92,0.00023709,2]
[381567897,1756285857502,-612.77701107,0.00023709,2]
[381567898,1756285857512,-693.87,0.00023709,2]
[381567899,1756285857521,-842.6,0.00023709,2]
[381567900,1756285857530,-480.0,0.00023709,2]
[381567901,1756285857539,-764.06,0.00023709,2]
[381567902,1756285857549,-453.2355303,0.00023711,2]
[381567903,1756285857558,-480.09,0.00023711,2]
[381567904,1756285857568,-480.0,0.00023711,2]
[381567905,1756285857577,-928.11,0.00023711,2]
[381567906,1756285857587,-480.0,0.00023711,2]
[381567907,1756285857596,-1912.74,0.00023711,2]
[381567908,1756285857606,-7935.53,0.00023711,2]
[381567909,1756285857615,-3188.91,0.00023711,2]
[381567910,1756285857624,-661.24,0.00023711,2]
[381567911,1756285857633,-1287.31,0.00023711,2]
[381567912,1756285857642,-7833.3,0.00023711,2]
[381567913,1756285857651,-151.0,0.00023712,7]
[381567914,1756285857660,-1493.34,0.00023712,2]
[381567915,1756285857670,-824.96,0.00023712,2]
[381567916,1756285857679,-579.94,0.00023712,2]
[381567917,1756285857688,-830.02,0.00023712,2]
[381567918,1756285857697,-970.25,0.00023712,2]
[381567919,1756285857706,-480.0,0.00023712,2]
[381567920,1756285857715,-786.53,0.00023712,2]
[381567921,1756285857724,-848.93,0.00023712,2]
[381567922,1756285857733,-789.12,0.00023712,2]
[381567923,1756285857742,-1366.37,0.00023712,2]
[381567924,1756285857751,-483.11382143,0.00023712,2]
[381567925,1756285857760,-566.14,0.00023712,2]
[381567926,1756285857769,-480.0,0.00023712,2]
[381567927,1756285857778,-678.67,0.00023712,2]
[381567928,1756285857788,-480.0,0.00023712,2]
[381567929,1756285857797,-822.43,0.00023712,2]
[381567930,1756285857806,-1389.22,0.00023712,2]
[381567931,1756285857816,-704.2,0.00023712,2]
[381567932,1756285857825,-792.52,0.00023712,2]
[381567933,1756285857834,-1169.64,0.00023712,2]
[381567934,1756285857843,-151.0,0.00023712,7]
[381567935,1756285857852,-480.0,0.00023712,2]
[381567936,1756285857862,-480.0,0.00023712,2]
[381567937,1756285857871,-547.94173048,0.00023712,2]
[381567938,1756285857880,-340.56249264,0.00023712,2]
[381567939,1756285857889,-1043.59,0.00023712,2]
[381567940,1756285857898,-480.0,0.00023712,2]
[381567941,1756285857907,-151.0,0.00023712,7]
[381567942,1756285857916,-480.0,0.00023712,2]
[381567943,1756285857925,-151.0,0.00023712,7]
[381567944,1756285857934,-480.0,0.00023712,2]
[381567945,1756285857943,-151.0,0.00023712,7]
[381567946,1756285857953,-618.15,0.00023712,2]
[381567947,1756285857968,-1320.45,0.00023712,2]
[381567948,1756285857977,-841.41,0.00023712,2]
[381567949,1756285857987,-619.37,0.00023712,2]
[381567950,1756285857996,-533.22,0.00023712,2]
[381567951,1756285858006,-872.01,0.00023712,2]
[381567952,1756285858016,-646.46,0.00023712,2]
[381567953,1756285858025,-480.0,0.00023712,2]
[381567954,1756285858035,-480.0,0.00023712,2]
[381567955,1756285858044,-938.57,0.00023712,2]
[381567956,1756285858053,-597.03,0.00023712,2]
[381567957,1756285858062,-942.59,0.00023712,2]
[381567958,1756285858072,-2221.35,0.00023712,2]
[381567959,1756285858080,-480.0,0.00023712,2]
[381567960,1756285858094,-730.56,0.00023712,2]
[381567961,1756285858104,-480.0,0.00023712,2]
[381567962,1756285858113,-480.0,0.00023712,2]
[381567963,1756285858123,-1151.88,0.00023712,2]
[381567964,1756285858133,-723.52,0.00023712,2]
[381567965,1756285858143,-622.95,0.00023712,2]
[381567966,1756285858152,-722.75,0.00023712,2]
[381567967,1756285858163,-2892.81,0.00023712,2]
[381567968,1756285858173,-1014.18,0.00023712,2]
[381567969,1756285858182,-480.0,0.00023712,2]
[381567970,1756285858191,-1664.28,0.00023712,2]
[381567971,1756285858201,-480.0,0.00023712,2]
[381567972,1756285858210,-989.88,0.00023712,2]
[381567973,1756285858219,-270.049272,0.00023712,7]
[381567974,1756285858229,-954.3,0.00023712,2]
[381567975,1756285858238,-1583.05,0.00023712,2]
[381567976,1756285858247,-696.96,0.00023712,2]
[381567977,1756285858256,-1095.71,0.00023712,2]
[381567978,1756285858266,-1292.01,0.00023712,2]
[381567979,1756285858275,-151.0,0.00023712,7]
[381567980,1756285858284,-7005.01,0.00023712,2]
[381567981,1756285858294,-1021.23,0.00023712,2]
[381567982,1756285858303,-480.0,0.00023712,2]
[381567983,1756285858313,-480.0,0.00023712,2]
[381567984,1756285858322,-1613.16,0.00023712,2]
[381567985,1756285858332,-767.01,0.00023712,2]
[381567986,1756285858341,-1041.73,0.00023712,2]
[381567987,1756285858351,-480.0,0.00023712,2]
[381567988,1756285858361,-1932.71,0.00023712,2]
[381567989,1756285858371,-480.0,0.00023712,2]
[381567990,1756285858380,-480.0,0.00023712,2]
[381567991,1756285858390,-480.0,0.00023712,2]
[381567992,1756285858399,-1275.38,0.00023712,2]
[381567993,1756285858411,-828.36,0.00023712,2]
[381567994,1756285858420,-480.0,0.00023712,2]
[381567995,1756285858429,-596.07,0.00023712,2]
[381567996,1756285858438,-480.0,0.00023712,2]
[381567997,1756285858448,-971.07,0.00023712,2]
[381567998,1756285858457,-480.0,0.00023712,2]
[381567999,1756285858466,-777.08,0.00023712,2]
[381568000,1756285858476,-626.87,0.00023712,2]
[381568001,1756285858485,-591.62,0.00023712,2]
[381568002,1756285858495,-480.0,0.00023712,2]
[381568003,1756285858504,-480.0,0.00023712,2]
[381568004,1756285858513,-480.0,0.00023712,2]
[381568005,1756285858523,-866.92,0.00023712,2]
[381568006,1756285858532,-480.0,0.00023713,2]
[381568007,1756285858541,-480.0,0.00023713,2]
[381568008,1756285858551,-880.24,0.00023713,2]
[381568009,1756285858560,-480.0,0.00023713,2]
[381568010,1756285858569,-480.0,0.00023713,2]
[381568011,1756285858590,-240.10807342,0.00023713,2]
[381568012,1756285858600,-480.0,0.00023713,2]
[381568013,1756285858609,-480.0,0.00023713,2]
[381568014,1756285858622,-480.0,0.00023713,2]
[381568015,1756285858633,-480.0,0.00023713,2]
[381568016,1756285858643,-692.95,0.00023713,2]
[381568017,1756285858652,-480.0,0.00023713,2]
[381568018,1756285858661,-480.0,0.00023713,2]
[381568019,1756285858671,-480.0,0.00023713,2]
[381568020,1756285858682,-480.0,0.00023713,2]
[381568021,1756285858691,-629.17,0.00023713,2]
[381568022,1756285858700,-480.0,0.00023713,2]
[381568023,1756285858710,-737.21,0.00023713,2]
[381568024,1756285858719,-480.0,0.00023713,2]
[381568025,1756285858729,-480.0,0.00023713,2]
[381568026,1756285858739,-773.62,0.00023713,2]
[381568027,1756285858749,-480.0,0.00023713,2]
[381568028,1756285858758,-888.62,0.00023713,2]
[381568029,1756285858768,-627.03,0.00023713,2]
[381568030,1756285858777,-613.83,0.00023713,2]
[381568031,1756285858786,-480.0,0.00023713,2]
[381568032,1756285858795,-973.97,0.00023713,2]
[381568033,1756285858806,-1191.58,0.00023713,2]
[381568034,1756285858815,-480.0,0.00023713,2]
[381568035,1756285858824,-480.0,0.00023713,2]
[381568036,1756285858833,-666.29,0.00023713,2]
[381568037,1756285858843,-770.58,0.00023713,2]
[381568038,1756285858852,-745.81,0.00023713,2]
[381568039,1756285858862,-480.0,0.00023713,2]
[381568040,1756285858871,-515.48,0.00023713,2]
[381568041,1756285858881,-820.08,0.00023713,2]
[381568042,1756285858890,-480.0,0.00023713,2]
[381568043,1756285858899,-443.23879149,0.00023713,2]
[381568044,1756285858909,-480.0,0.00023713,2]
[381568045,1756285858919,-480.0,0.00023713,2]
[381568046,1756285858929,-480.0,0.00023713,2]
[381568047,1756285858938,-480.0,0.00023713,2]
[381568048,1756285858948,-308.55461164,0.00023713,2]
[381568049,1756285858958,-480.0,0.00023713,2]
[381568050,1756285858967,-480.0,0.00023713,2]
[381568051,1756285858977,-480.0,0.00023713,2]
[381568052,1756285858986,-673.98,0.00023713,2]
[381568053,1756285858995,-480.0,0.00023713,2]
[381568054,1756285859004,-480.0,0.00023713,2]
[381568055,1756285859014,-480.0,0.00023713,2]
[381568056,1756285859023,-480.0,0.00023713,2]
[381568057,1756285859033,-480.0,0.00023713,2]
[381568058,1756285859043,-1020.13,0.00023713,2]
[381568059,1756285859052,-578.37,0.00023713,2]
[381568060,1756285859061,-374.70383773,0.00023713,2]
[381568061,1756285859071,-480.0,0.00023713,2]
[381568062,1756285859081,-480.0,0.00023713,2]
[381568063,1756285859095,-151.0,0.00023713,7]
[381568064,1756285859106,-151.0,0.00023713,7]
[381568065,1756285859116,-480.0,0.00023713,2]
[381568066,1756285859127,-151.0,0.00023713,7]
[381568067,1756285859138,-245.29068,0.00023713,7]
[381568068,1756285859148,-156.067272,0.00023713,7]
[381568069,1756285859159,-485.20204178,0.00023713,2]
[381568070,1756285859172,-624.75,0.00023713,2]
[381568071,1756285859181,-151.0,0.00023713,7]
[381568072,1756285859191,-151.0,0.00023713,7]
[381568073,1756285859200,-781.52,0.00023713,2]
[381568074,1756285859210,-480.0,0.00023713,2]
[381568075,1756285859219,-1465.99,0.00023713,2]
[381568076,1756285859228,-480.0,0.00023713,2]
[381568077,1756285859237,-480.0,0.00023713,2]
[381568078,1756285859246,-480.0,0.00023713,2]
[381568079,1756285859256,-480.0,0.00023713,2]
[381568080,1756285859266,-743.51,0.00023713,2]
[381568081,1756285859275,-1289.28,0.00023713,2]
[381568082,1756285859284,-534.5613856,0.00023713,2]
[381568083,1756285859293,-480.0,0.00023713,2]
[381568084,1756285859303,-480.0,0.00023713,2]
[381568085,1756285859313,-625.0,0.00023713,2]
[381568086,1756285859323,-480.0,0.00023713,2]
[381568087,1756285859332,-486.16,0.00023713,2]
[381568088,1756285859341,-568.25,0.00023713,2]
[381568089,1756285859350,-515.56,0.00023713,2]
[381568090,1756285859360,-480.0,0.00023713,2]
[381568091,1756285859370,-781.98,0.00023713,2]
[381568092,1756285859379,-480.0,0.00023713,2]
[381568093,1756285859389,-832.33,0.00023713,2]
[381568094,1756285859399,-480.0,0.00023713,2]
[381568095,1756285859408,-389.80839688,0.00023713,2]
[381568096,1756285859418,-194.69647437,0.00023713,2]
[381568097,1756285859427,-480.0,0.00023713,2]
[381568098,1756285859437,-480.0,0.00023713,2]
[381568099,1756285859446,-405.03008067,0.00023713,2]
[381568100,1756285859455,-480.0,0.00023713,2]
[381568101,1756285859466,-481.99757906,0.00023713,2]
[381568102,1756285859475,-480.0,0.00023713,2]
[381568103,1756285859484,-480.0,0.00023713,2]
[381568104,1756285859494,-480.0,0.00023713,2]
[381568105,1756285859503,-503.83,0.00023713,2]
[381568106,1756285859512,-550.42,0.00023713,2]
[381568107,1756285859522,-831.45,0.00023713,2]
[381568108,1756285859531,-938.52,0.00023713,2]
[381568109,1756285859540,-480.0,0.00023713,2]
[381568110,1756285859550,-480.0,0.00023713,2]
[381568111,1756285859559,-493.45,0.00023713,2]
[381568112,1756285859569,-172.42588424,0.00023713,2]
[381568113,1756285859578,-863.4,0.00023713,2]
[381568114,1756285859587,-266.71,0.00023713,2]
[381568115,1756285859596,-477.10053153,0.00023713,2]
[381568116,1756285859605,-480.0,0.00023713,2]
[381568117,1756285859615,-480.0,0.00023713,2]
[381568118,1756285859625,-480.0,0.00023713,2]
[381568119,1756285859635,-480.0,0.00023713,2]
[381568120,1756285859644,-480.0,0.00023713,2]
[381568121,1756285859654,-480.0,0.00023713,2]
[381568122,1756285859663,-480.0,0.00023713,2]
[381568123,1756285859672,-13314.52,0.00023713,2]
[381568124,1756285859682,-774.15,0.00023713,2]
[381568125,1756285859691,-480.0,0.00023713,2]
[381568126,1756285859701,-1134.59,0.00023713,2]
[381568127,1756285859710,-480.0,0.00023713,2]
[381568128,1756285859719,-480.0,0.00023713,2]
[381568129,1756285859729,-480.0,0.00023713,2]
[381568130,1756285859738,-1411.35,0.00023713,2]
[381568131,1756285859748,-480.0,0.00023714,2]
[381568132,1756285859757,-480.0,0.00023714,2]
[381568133,1756285859767,-480.0,0.00023714,2]
[381568134,1756285859777,-582.13,0.00023714,2]
[381568135,1756285859786,-480.0,0.00023714,2]
[381568136,1756285859795,-480.0,0.00023714,2]
[381568137,1756285859804,-480.0,0.00023714,2]
[381568138,1756285859814,-480.0,0.00023714,2]
[381568139,1756285859823,-480.0,0.00023714,2]
[381568140,1756285859833,-480.0,0.00023714,2]
[381568141,1756285859842,-511.69,0.00023714,2]
[381568142,1756285859851,-480.0,0.00023714,2]
[381568143,1756285859861,-525.01,0.00023714,2]
[381568144,1756285859870,-480.0,0.00023714,2]
[381568145,1756285859879,-480.0,0.00023714,2]
[381568146,1756285859889,-1917.35,0.00023714,2]
[381568147,1756285859898,-783.15,0.00023714,2]
[381568148,1756285859908,-480.0,0.00023714,2]
[381568149,1756285859917,-516.6,0.00023714,2]
[381568150,1756285859927,-480.0,0.00023714,2]
[381568151,1756285859936,-1140.75,0.00023714,2]
[381568152,1756285859945,-480.0,0.00023714,2]
[381568153,1756285859955,-480.0,0.00023714,2]
[381568154,1756285859964,-700.94,0.00023714,2]
[381568155,1756285859973,-151.0,0.00023714,7]
[381568156,1756285860177,-3208.7,0.00023714,2]
[381568157,1756285860188,-480.0,0.00023714,2]
[381568158,1756285860198,-779.72,0.00023714,2]
[381568159,1756285860207,-1513.85,0.00023714,2]
[381568160,1756285860216,-1234.21,0.00023714,2]
[381568161,1756285860226,-151.0,0.00023714,7]
[381568162,1756285860235,-276.01367867,0.00023714,2]
[381568163,1756285860244,-480.0,0.00023714,2]
[381568164,1756285860255,-480.0,0.00023714,2]
[381568165,1756285860264,-651.98,0.00023714,2]
[381568166,1756285860273,-1074.18,0.00023714,2]
[381568167,1756285860283,-880.36,0.00023714,2]
[381568168,1756285860292,-506.76,0.00023714,2]
[381568169,1756285860301,-480.0,0.00023714,2]
[381568170,1756285860313,-151.0,0.00023714,7]
[381568171,1756285860326,-2039.07,0.00023714,2]
[381568172,1756285860336,-480.0,0.00023714,2]
[381568173,1756285860346,-151.0,0.00023714,7]
[381568174,1756285860355,-1038.1,0.00023714,2]
[381568175,1756285860364,-480.0,0.00023714,2]
[381568176,1756285860374,-151.0,0.00023714,7]
[381568177,1756285860383,-480.0,0.00023714,2]
[381568178,1756285860393,-930.51,0.00023714,2]
[381568179,1756285860403,-1610.0,0.00023714,2]
[381568180,1756285860412,-480.0,0.00023714,2]
[381568181,1756285860422,-480.0,0.00023714,2]
[381568182,1756285860432,-480.0,0.00023714,2]
[381568183,1756285860441,-1381.94,0.00023714,2]
[381568184,1756285860451,-480.0,0.00023714,2]
[381568185,1756285860460,-480.0,0.00023714,2]
[381568186,1756285860469,-662.23,0.00023714,2]
[381568187,1756285860478,-524.45,0.00023714,2]
[381568188,1756285860487,-605.68,0.00023714,2]
[381568189,1756285860497,-480.0,0.00023714,2]
[381568190,1756285860507,-480.0,0.00023714,2]
[381568191,1756285860516,-840.05,0.00023714,2]
[381568192,1756285860525,-480.0,0.00023714,2]
[381568193,1756285860534,-505.0,0.00023714,2]
[381568194,1756285860542,-491.96,0.00023714,2]
[381568195,1756285860552,-480.0,0.00023714,2]
[381568196,1756285860561,-480.0,0.00023714,2]
[381568197,1756285860570,-934.27,0.00023714,2]
[381568198,1756285860579,-480.0,0.00023714,2]
[381568199,1756285860588,-609.61,0.00023714,2]
[381568200,1756285860597,-151.0,0.00023714,7]